fUSD/lending_fUSD_20240828
["ID","MTS","AMOUNT","RATE_DAILY","PERIOD"]
[336421223,1724820647117,-500.0,0.00010958,2]
[336421225,1724820647127,-500.0,0.00010958,2]
[336421227,1724820647136,-500.0,0.00010958,2]
[336421229,1724820647146,-500.0,0.00010958,2]
[336421231,1724820647158,-500.0,0.00010958,2]
[336421233,1724820647167,-500.0,0.00010958,2]
[336421235,1724820647176,-500.0,0.00010958,2]
[336421237,1724820647187,-500.0,0.00010958,2]
[336421239,1724820647197,-552.63896349,0.00010958,2]
[336421241,1724820647206,-500.0,0.00010958,2]
[336421242,1724820647216,-500.0,0.00010958,2]
[336421244,1724820647225,-500.0,0.00010958,2]
[336421246,1724820647234,-559.86483978,0.00010958,2]
[336421248,1724820647244,-500.0,0.00010958,2]
[336421250,1724820647253,-9414.26,0.00010958,2]
[336421252,1724820647262,-200.0,0.00010959,2]
[336421254,1724820647271,-179.82,0.00010959,2]
[336421256,1724820647281,-4408.24,0.00010959,2]
[336421258,1724820647290,-150.0,0.00010959,2]
[336421260,1724820647299,-593.3,0.00010959,2]
[336421262,1724820647309,-250.0,0.00010959,2]
[336421264,1724820647319,-830.93,0.00010959,2]
[336421266,1724820647328,-2000.0,0.00010959,2]
[336421268,1724820647339,-202.05,0.00010959,2]
[336421270,1724820647348,-400.0,0.00010973,2]
[336421272,1724820647358,-188.937186,0.00010973,2]
[336421274,1724820647368,-376.72189051,0.00010974,2]
[336421276,1724820647378,-376.72189051,0.00010976,2]
[336421278,1724820647387,-500.0,0.00010976,2]
[336421280,1724820647397,-455.77828402,0.00010976,2]
[336421282,1724820647407,-500.0,0.00010976,2]
[336421283,1724820647416,-500.0,0.00010976,2]
[336421285,1724820647426,-376.72189051,0.00010976,2]
[336421287,1724820647436,-500.0,0.00010977,2]
[336421289,1724820647446,-500.0,0.00010977,2]
[336421291,1724820647455,-500.0,0.00010977,2]
[336421293,1724820647464,-500.0,0.00010977,2]
[336421295,1724820647474,-500.0,0.00010977,2]
[336421297,1724820647483,-500.0,0.00010977,2]
[336421298,1724820647492,-534.21,0.00010977,2]
[336421300,1724820647502,-500.0,0.00010977,2]
[336421302,1724820647511,-500.0,0.00010977,2]
[336421304,1724820647520,-500.0,0.00010977,2]
[336421306,1724820647530,-500.0,0.00010977,2]
[336421308,1724820647539,-500.0,0.00010977,2]
[336421310,1724820647549,-500.0,0.00010977,2]
[336421312,1724820647558,-500.0,0.00010977,2]
[336421314,1724820647567,-500.0,0.00010977,2]
[336421316,1724820647576,-150.0,0.00010977,2]
[336421318,1724820647585,-500.0,0.00010977,2]
[336421320,1724820647595,-4167.05,0.00010977,2]
[336421322,1724820647604,-464.5618738,0.00010977,2]
[336421324,1724820647613,-500.0,0.00010977,2]
[336421326,1724820647623,-384.16098519,0.00010977,2]
[336421328,1724820647632,-438.65997963,0.00010977,2]
[336421330,1724820647642,-500.0,0.00010977,2]
[336421332,1724820647651,-500.0,0.00010977,2]
[336421334,1724820647660,-500.0,0.00010977,2]
[336421336,1724820647669,-960.96,0.00010977,2]
[336421338,1724820647679,-747.32,0.00010977,2]
[336421340,1724820647688,-1695.79,0.00010977,2]
[336421342,1724820647698,-500.0,0.00010977,2]
[336421344,1724820647708,-706.74,0.00010977,2]
[336421346,1724820647718,-2059.37,0.00010977,2]
[336421347,1724820647728,-500.0,0.00010977,2]
[336421349,1724820647737,-500.0,0.00010977,2]
[336421351,1724820647747,-217.19426508,0.00010977,2]
[336421353,1724820647757,-2635.84,0.00010977,2]
[336421355,1724820647766,-2635.84,0.00010977,2]
[336421357,1724820647776,-571.78,0.00010977,2]
[336421359,1724820647786,-500.0,0.00010977,2]
[336421361,1724820647795,-1168.23,0.00010977,2]
[336421364,1724820647818,-1168.23,0.00010977,2]
[336421366,1724820647829,-500.0,0.00010977,2]
[336421368,1724820647839,-648.03771961,0.00010977,2]
[336421370,1724820647848,-500.0,0.00010977,2]
[336421372,1724820647858,-500.0,0.00010977,2]
[336421373,1724820647868,-1124.16,0.00010977,2]
[336421375,1724820647877,-1124.16,0.00010977,2]
[336421377,1724820647887,-500.0,0.00010977,2]
[336421379,1724820647897,-3784.52,0.00010977,2]
[336421381,1724820647906,-3279.38,0.00010977,2]
[336421383,1724820647915,-3279.38,0.00010977,2]
[336421385,1724820647925,-500.0,0.00010977,2]
[336421387,1724820647934,-1785.26,0.00010977,2]
[336421389,1724820647943,-1785.26,0.00010977,2]
[336421391,1724820647953,-500.0,0.00010977,2]
[336421393,1724820647962,-500.0,0.00010977,2]
[336421395,1724820647971,-500.0,0.00010977,2]
[336421397,1724820647980,-500.0,0.00010977,2]
[336421399,1724820647989,-299.51995912,0.00010977,2]
[336421400,1724820647999,-500.0,0.00010977,2]
[336421402,1724820648008,-500.0,0.00010977,2]
[336421404,1724820648018,-1418.75,0.00010977,2]
[336421406,1724820648027,-1418.75,0.00010977,2]
[336421408,1724820648037,-1374.91,0.00010977,2]
[336421410,1724820648046,-167.31010325,0.00010977,2]
[336421412,1724820648065,-520.97942346,0.00010977,2]
[336421414,1724820648074,-500.0,0.00010977,2]
[336421416,1724820648084,-500.0,0.00010977,2]
[336421418,1724820648093,-500.0,0.00010977,2]
[336421433,1724820648229,-500.0,0.00010977,2]
[336421435,1724820648239,-500.0,0.00010977,2]
[336421437,1724820648249,-500.0,0.00010977,2]
[336421439,1724820648258,-500.0,0.00010977,2]
[336421441,1724820648268,-266.6868876,0.00010977,2]
[336421442,1724820648277,-2818.46,0.00010977,2]
[336421444,1724820648286,-2927.55,0.00010977,2]
[336421446,1724820648296,-2927.55,0.00010977,2]
[336421448,1724820648307,-500.0,0.00010977,2]
[336421450,1724820648316,-500.0,0.00010977,2]
[336421452,1724820648325,-645.0,0.00010977,2]
[336421454,1724820648334,-498.24236874,0.00010977,2]
[336421456,1724820648344,-500.0,0.00010977,2]
[336421458,1724820648353,-500.0,0.00010977,2]
[336421460,1724820648362,-500.0,0.00010977,2]
[336421462,1724820648371,-500.0,0.00010977,2]
[336421464,1724820648381,-500.0,0.00010977,2]
[336421466,1724820648389,-500.0,0.00010977,2]
[336421467,1724820648399,-2186.13,0.00010977,2]
[336421469,1724820648408,-500.0,0.00010977,2]
[336421471,1724820648417,-2186.13,0.00010977,2]
[336421473,1724820648426,-500.0,0.00010977,2]
[336421475,1724820648435,-500.0,0.00010977,2]
[336421477,1724820648445,-500.0,0.00010977,2]
[336421479,1724820648454,-770.51,0.00010977,2]
[336421481,1724820648463,-500.0,0.00010977,2]
[336421483,1724820648472,-500.0,0.00010977,2]
[336421485,1724820648481,-500.0,0.00010977,2]
[336421487,1724820648491,-500.0,0.00010977,2]
[336421489,1724820648501,-500.0,0.00010977,2]
[336421491,1724820648510,-252.17524534,0.00010977,2]
[336421492,1724820648520,-500.0,0.00010977,2]
[336421494,1724820648529,-176.38368578,0.00010977,2]
[336421496,1724820648539,-500.0,0.00010977,2]
[336421498,1724820648548,-500.0,0.00010977,2]
[336421500,1724820648558,-500.0,0.00010977,2]
[336421502,1724820648567,-546.79904646,0.00010977,2]
[336421504,1724820648577,-601.03886386,0.00010977,2]
[336421506,1724820648586,-500.0,0.00010977,2]
[336421508,1724820648595,-500.0,0.00010977,2]
[336421510,1724820648605,-3583.72,0.00010977,2]
[336421512,1724820648614,-540.87,0.00010977,2]
[336421514,1724820648623,-3583.72,0.00010977,2]
[336421516,1724820648633,-540.87,0.00010977,2]
[336421518,1724820648643,-540.87,0.00010977,2]
[336421520,1724820648652,-1164.1,0.00010977,2]
[336421522,1724820648661,-500.0,0.00010977,2]
[336421524,1724820648671,-554.50805637,0.00010977,2]
[336421525,1724820648680,-13233.97,0.00010977,2]
[336421527,1724820648690,-13233.97,0.00010977,2]
[336421529,1724820648699,-526.40365217,0.00010977,2]
[336421531,1724820648709,-4575.82,0.00010977,2]
[336421533,1724820648718,-500.0,0.00010977,2]
[336421535,1724820648728,-193.34585187,0.00010977,2]
[336421537,1724820648738,-516.30371013,0.00010977,2]
[336421539,1724820648748,-11545.03,0.00010977,2]
[336421541,1724820648757,-11545.03,0.00010977,2]
[336421543,1724820648767,-500.0,0.00010977,2]
[336421545,1724820648777,-500.0,0.00010977,2]
[336421547,1724820648787,-2252.42,0.00010977,2]
[336421549,1724820648797,-451.46928395,0.00010977,2]
[336421551,1724820648808,-500.0,0.00010977,2]
[336421553,1724820648818,-230.20769688,0.00010977,2]
[336421555,1724820648828,-8955.62,0.00010977,2]
[336421557,1724820648838,-8955.62,0.00010977,2]
[336421559,1724820648848,-500.0,0.00010977,2]
[336421561,1724820648857,-500.0,0.00010977,2]
[336421563,1724820648866,-1959.59,0.00010977,2]
[336421565,1724820648876,-3122.95,0.00010977,2]
[336421567,1724820648886,-3122.95,0.00010977,2]
[336421569,1724820648895,-631.43,0.00010977,2]
[336421571,1724820648905,-631.43,0.00010977,2]
[336421573,1724820648915,-631.43,0.00010977,2]
[336421575,1724820648924,-601.46563661,0.00010977,2]
[336421577,1724820648933,-8233.75,0.00010977,2]
[336421579,1724820648943,-512.29,0.00010977,2]
[336421581,1724820648952,-512.29,0.00010977,2]
[336421583,1724820648961,-512.29,0.00010977,2]
[336421584,1724820648970,-2280.11,0.00010977,2]
[336421586,1724820648980,-2280.11,0.00010977,2]
[336421588,1724820648989,-2280.11,0.00010977,2]
[336421589,1724820648998,-1395.18,0.00010977,2]
[336421590,1724820649007,-1395.18,0.00010977,2]
[336421591,1724820649017,-1395.18,0.00010977,2]
[336421592,1724820649026,-5907.89,0.00010977,2]
[336421593,1724820649036,-500.0,0.00010977,2]
[336421594,1724820649045,-264.9533688,0.00010977,2]
[336421595,1724820649056,-500.0,0.00010977,2]
[336421596,1724820649065,-500.0,0.00010977,2]
[336421597,1724820649075,-500.0,0.00010977,2]
[336421598,1724820649084,-18804.88,0.00010977,2]
[336421599,1724820649094,-18804.88,0.00010977,2]
[336421600,1724820649104,-500.0,0.00010977,2]
[336421601,1724820649118,-500.0,0.00010977,2]
[336421602,1724820649128,-54256.34,0.00010977,2]
[336421603,1724820649138,-13445.87,0.00010977,2]
[336421604,1724820649147,-13445.87,0.00010977,2]
[336421605,1724820649156,-13445.87,0.00010977,2]
[336421606,1724820649166,-500.0,0.00010977,2]
[336421607,1724820649175,-373.38744047,0.00010977,2]
[336421608,1724820649184,-500.0,0.00010977,2]
[336421610,1724820649194,-500.0,0.00010977,2]
[336421612,1724820649204,-500.0,0.00010977,2]
[336421614,1724820649213,-500.0,0.00010977,2]
[336421615,1724820649222,-3070.74,0.00010977,2]
[336421616,1724820649231,-500.0,0.00010977,2]
[336421617,1724820649240,-3070.74,0.00010977,2]
[336421618,1724820649250,-500.0,0.00010977,2]
[336421619,1724820649259,-3070.74,0.00010977,2]
[336421620,1724820649268,-500.0,0.00010977,2]
[336421621,1724820649277,-4510.64,0.00010977,2]
[336421622,1724820649287,-22585.39,0.00010977,2]
[336421623,1724820649296,-22585.39,0.00010977,2]
[336421624,1724820649306,-22585.39,0.00010977,2]
[336421625,1724820649315,-500.0,0.00010977,2]
[336421626,1724820649324,-500.0,0.00010977,2]
[336421627,1724820649334,-196.16804876,0.00010977,2]
[336421628,1724820649343,-316.68993112,0.00010977,2]
[336421629,1724820649353,-500.0,0.00010977,2]
[336421630,1724820649362,-500.0,0.00010977,2]
[336421631,1724820649371,-500.0,0.00010977,2]
[336421633,1724820649381,-500.0,0.00010977,2]
[336421635,1724820649391,-7667.73,0.00010977,2]
[336421637,1724820649400,-7667.73,0.00010977,2]
[336421639,1724820649409,-7667.73,0.00010977,2]
[336421641,1724820649418,-500.0,0.00010977,2]
[336421643,1724820649428,-500.0,0.00010977,2]
[336421645,1724820649437,-559.28091395,0.00010977,2]
[336421647,1724820649446,-500.0,0.00010977,2]
[336421649,1724820649455,-622.91,0.00010977,2]
[336421651,1724820649465,-500.0,0.00010977,2]
[336421653,1724820649474,-622.91,0.00010977,2]
[336421654,1724820649483,-10772.17,0.00010977,2]
[336421656,1724820649493,-500.0,0.00010977,2]
[336421658,1724820649502,-500.0,0.00010977,2]
[336421660,1724820649511,-500.0,0.00010977,2]
[336421662,1724820649521,-500.0,0.00010977,2]
[336421664,1724820649530,-500.0,0.00010977,2]
[336421666,1724820649539,-500.0,0.00010977,2]
[336421668,1724820649550,-500.0,0.00010977,2]
[336421670,1724820649559,-500.0,0.00010977,2]
[336421672,1724820649569,-500.0,0.00010977,2]
[336421674,1724820649578,-500.0,0.00010977,2]
[336421676,1724820649588,-376.72189051,0.00010977,2]
[336421678,1724820649597,-500.0,0.00010978,2]
[336421680,1724820649606,-500.0,0.00010978,2]
[336421681,1724820649616,-853.28,0.00010978,2]
[336421683,1724820649625,-500.0,0.00010978,2]
[336421685,1724820649634,-500.0,0.00010978,2]
[336421687,1724820649644,-500.0,0.00010978,2]
[336421689,1724820649653,-500.0,0.00010978,2]
[336421691,1724820649663,-500.0,0.00010978,2]
[336421693,1724820649674,-500.0,0.00010978,2]
[336421695,1724820649683,-500.0,0.00010978,2]
[336421697,1724820649693,-500.0,0.00010978,2]
[336421699,1724820649703,-500.0,0.00010978,2]
[336421700,1724820649712,-500.0,0.00010978,2]
[336421702,1724820649722,-500.0,0.00010978,2]
[336421704,1724820649731,-500.0,0.00010978,2]
[336421706,1724820649741,-899.66,0.00010978,2]
[336421708,1724820649749,-500.0,0.00010978,2]
[336421710,1724820649759,-500.0,0.00010978,2]
[336421711,1724820649768,-500.0,0.00010978,2]
[336421713,1724820649777,-500.0,0.00010978,2]
[336421715,1724820649786,-500.0,0.00010978,2]
[336421716,1724820649795,-500.0,0.00010978,2]
[336421717,1724820649806,-500.0,0.00010978,2]
[336421718,1724820649815,-500.0,0.00010978,2]
[336421719,1724820649824,-500.0,0.00010978,2]
[336421720,1724820649834,-500.0,0.00010978,2]
[336421721,1724820649843,-500.0,0.00010978,2]
[336421722,1724820649853,-500.0,0.00010978,2]
[336421723,1724820649862,-500.0,0.00010978,2]
[336421724,1724820649871,-534.21,0.00010978,2]
[336421725,1724820649881,-534.21,0.00010978,2]
[336421726,1724820649889,-534.21,0.00010978,2]
[336421727,1724820649899,-500.0,0.00010978,2]
[336421728,1724820649908,-500.0,0.00010978,2]
[336421729,1724820649917,-500.0,0.00010978,2]
[336421731,1724820649927,-500.0,0.00010978,2]
[336421733,1724820649936,-500.0,0.00010978,2]
[336421735,1724820649946,-500.0,0.00010978,2]
[336421737,1724820649955,-500.0,0.00010978,2]
[336421738,1724820649964,-500.0,0.00010978,2]
[336421740,1724820649974,-500.0,0.00010978,2]
[336421742,1724820649984,-500.0,0.00010978,2]
[336421744,1724820649994,-500.0,0.00010978,2]
[336421745,1724820650004,-500.0,0.00010978,2]
[336421746,1724820650013,-500.0,0.00010978,2]
[336421747,1724820650023,-438.13511001,0.00010978,2]
[336421748,1724820650032,-500.0,0.00010978,2]
[336421749,1724820650041,-500.0,0.00010978,2]
[336421750,1724820650052,-500.0,0.00010978,2]
[336421751,1724820650063,-500.0,0.00010978,2]
[336421752,1724820650072,-500.0,0.00010978,2]
[336421753,1724820650080,-500.0,0.00010978,2]
[336421755,1724820650091,-500.0,0.00010978,2]
[336421757,1724820650100,-500.0,0.00010978,2]
[336421759,1724820650115,-500.0,0.00010978,2]
[336421761,1724820650125,-500.0,0.00010978,2]
[336421763,1724820650134,-297.05069768,0.00010978,2]
[336421765,1724820650143,-500.0,0.00010978,2]
[336421767,1724820650152,-500.0,0.00010978,2]
[336421769,1724820650161,-524.95414468,0.00010978,2]
[336421771,1724820650171,-500.0,0.00010978,2]
[336421773,1724820650181,-500.0,0.00010978,2]
[336421775,1724820650191,-500.0,0.00010978,2]
[336421777,1724820650200,-500.0,0.00010978,2]
[336421779,1724820650210,-1975.27,0.00010978,2]
[336421781,1724820650219,-150.0,0.00010978,2]
[336421782,1724820650228,-150.0,0.00010978,2]
[336421783,1724820650239,-150.0,0.00010978,2]
[336421784,1724820650359,-500.0,0.00010978,2]
[336421785,1724820650369,-500.0,0.00010978,2]
[336421786,1724820650378,-500.0,0.00010978,2]
[336421787,1724820650387,-500.0,0.00010978,2]
[336421788,1724820650396,-2982.81,0.00010978,2]
[336421789,1724820650405,-4167.05,0.00010978,2]
[336421790,1724820650414,-4167.05,0.00010978,2]
[336421791,1724820650424,-4167.05,0.00010978,2]
[336421792,1724820650433,-500.0,0.00010978,2]
[336421793,1724820650442,-500.0,0.00010978,2]
[336421794,1724820650451,-500.0,0.00010978,2]
[336421795,1724820650459,-500.0,0.00010978,2]
[336421796,1724820650469,-500.0,0.00010978,2]
[336421797,1724820650478,-500.0,0.00010978,2]
[336421798,1724820650486,-500.0,0.00010978,2]
[336421799,1724820650495,-607.77171316,0.00010978,2]
[336421800,1724820650504,-500.0,0.00010978,2]
[336421801,1724820650513,-500.0,0.00010978,2]
[336421802,1724820650522,-500.0,0.00010978,2]
[336421803,1724820650531,-500.0,0.00010978,2]
[336421804,1724820650540,-500.0,0.00010978,2]
[336421805,1724820650550,-1455.9,0.00010978,2]
[336421806,1724820650559,-500.0,0.00010978,2]
[336421807,1724820650568,-500.0,0.00010978,2]
[336421808,1724820650577,-500.0,0.00010978,2]
[336421809,1724820650586,-500.0,0.00010978,2]
[336421810,1724820650595,-2123.59,0.00010978,2]
[336421811,1724820650605,-500.0,0.00010978,2]
[336421812,1724820650614,-500.0,0.00010978,2]
[336421813,1724820650623,-500.0,0.00010978,2]
[336421814,1724820650632,-500.0,0.00010978,2]
[336421815,1724820650641,-500.0,0.00010978,2]
[336421816,1724820650650,-986.75,0.00010978,2]
[336421817,1724820650659,-960.96,0.00010978,2]
[336421818,1724820650668,-960.96,0.00010978,2]
[336421819,1724820650677,-960.96,0.00010978,2]
[336421820,1724820650686,-500.0,0.00010978,2]
[336421821,1724820650695,-2027.56,0.00010978,2]
[336421822,1724820650704,-500.0,0.00010978,2]
[336421823,1724820650714,-747.32,0.00010978,2]
[336421824,1724820650723,-747.32,0.00010978,2]
[336421825,1724820650733,-747.32,0.00010978,2]
[336421826,1724820650742,-917.34,0.00010978,2]
[336421827,1724820650751,-500.0,0.00010978,2]
[336421828,1724820650761,-552.86,0.00010978,2]
[336421829,1724820650771,-1695.79,0.00010978,2]
[336421830,1724820650780,-1695.79,0.00010978,2]
[336421831,1724820650789,-1695.79,0.00010978,2]
[336421832,1724820650801,-500.0,0.00010978,2]
[336421833,1724820650814,-502.84910013,0.00010978,2]
[336421834,1724820650823,-493.51348983,0.00010978,2]
[336421835,1724820650833,-500.0,0.00010978,2]
[336421836,1724820650843,-500.0,0.00010978,2]
[336421837,1724820650852,-500.0,0.00010978,2]
[336421838,1724820650862,-500.0,0.00010978,2]
[336421839,1724820650872,-706.74,0.00010978,2]
[336421840,1724820650882,-706.74,0.00010978,2]
[336421841,1724820650892,-706.74,0.00010978,2]
[336421842,1724820650902,-500.0,0.00010978,2]
[336421843,1724820650911,-2059.37,0.00010978,2]
[336421844,1724820650921,-2059.37,0.00010978,2]
[336421845,1724820650931,-2059.37,0.00010978,2]
[336421846,1724820650940,-500.0,0.00010978,2]
[336421847,1724820650950,-500.0,0.00010978,2]
[336421848,1724820650959,-500.0,0.00010978,2]
[336421849,1724820650968,-500.0,0.00010978,2]
[336421850,1724820650978,-500.0,0.00010978,2]
[336421851,1724820650987,-288.14636522,0.00010978,2]
[336421852,1724820650996,-500.0,0.00010978,2]
[336421853,1724820651005,-500.0,0.00010978,2]
[336421854,1724820651014,-500.0,0.00010978,2]
[336421855,1724820651023,-2635.84,0.00010978,2]
[336421856,1724820651032,-2635.84,0.00010978,2]
[336421857,1724820651041,-2635.84,0.00010978,2]
[336421858,1724820651053,-571.78,0.00010978,2]
[336421859,1724820651062,-571.78,0.00010978,2]
[336421860,1724820651071,-571.78,0.00010978,2]
[336421861,1724820651080,-7230.49,0.00010978,2]
[336421862,1724820651090,-9419.79,0.00010978,2]
[336421863,1724820651099,-500.0,0.00010978,2]
[336421864,1724820651112,-607.75448157,0.00010978,2]
[336421865,1724820651121,-500.0,0.00010978,2]
[336421866,1724820651130,-1168.23,0.00010978,2]
[336421867,1724820651139,-1168.23,0.00010978,2]
[336421868,1724820651149,-1168.23,0.00010978,2]
[336421869,1724820651158,-9050.31,0.00010978,2]
[336421870,1724820651167,-500.0,0.00010978,2]
[336421871,1724820651176,-500.0,0.00010978,2]
[336421872,1724820651187,-500.0,0.00010978,2]
[336421873,1724820651197,-656.74,0.00010978,2]
[336421874,1724820651206,-500.0,0.00010978,2]
[336421875,1724820651215,-500.0,0.00010978,2]
[336421876,1724820651224,-500.0,0.00010978,2]
[336421877,1724820651234,-1124.16,0.00010978,2]
[336421878,1724820651243,-1124.16,0.00010978,2]
[336421879,1724820651251,-1124.16,0.00010978,2]
[336421880,1724820651261,-500.0,0.00010978,2]
[336421881,1724820651271,-524.30213334,0.00010978,2]
[336421882,1724820651280,-28992.77,0.00010978,2]
[336421883,1724820651290,-500.0,0.00010978,2]
[336421884,1724820651301,-529.64154325,0.00010978,2]
[336421885,1724820651316,-172.77776436,0.00010978,2]
[336421886,1724820651325,-3784.52,0.00010978,2]
[336421887,1724820651334,-3784.52,0.00010978,2]
[336421888,1724820651344,-3784.52,0.00010978,2]
[336421889,1724820651352,-500.0,0.00010978,2]
[336421890,1724820651361,-9139.98,0.00010978,2]
[336421891,1724820651370,-500.0,0.00010978,2]
[336421892,1724820651380,-17573.95,0.00010978,2]
[336421893,1724820651389,-3279.38,0.00010978,2]
[336421894,1724820651398,-3279.38,0.00010978,2]
[336421895,1724820651407,-3279.38,0.00010978,2]
[336421896,1724820651417,-500.0,0.00010978,2]
[336421897,1724820651426,-2239.75,0.00010978,2]
[336421898,1724820651435,-500.0,0.00010978,2]
[336421899,1724820651444,-545.59346855,0.00010978,2]
[336421900,1724820651453,-500.0,0.00010978,2]
[336421901,1724820651462,-500.0,0.00010978,2]
[336421902,1724820651471,-1785.26,0.00010978,2]
[336421903,1724820651480,-1785.26,0.00010978,2]
[336421904,1724820651489,-1785.26,0.00010978,2]
[336421905,1724820651498,-17859.84,0.00010978,2]
[336421906,1724820651507,-500.0,0.00010978,2]
[336421907,1724820651516,-500.0,0.00010978,2]
[336421908,1724820651526,-500.0,0.00010978,2]
[336421909,1724820651535,-7057.36,0.00010978,2]
[336421910,1724820651544,-500.0,0.00010978,2]
[336421911,1724820651560,-500.0,0.00010978,2]
[336421912,1724820651570,-500.0,0.00010978,2]
[336421913,1724820651579,-500.0,0.00010978,2]
[336421914,1724820651588,-1844.63,0.00010978,2]
[336421915,1724820651597,-500.0,0.00010978,2]
[336421916,1724820651606,-500.0,0.00010978,2]
[336421917,1724820651615,-500.0,0.00010978,2]
[336421918,1724820651624,-301.52991029,0.00010978,2]
[336421919,1724820651633,-2480.75,0.00010978,2]
[336421920,1724820651642,-1418.75,0.00010978,2]
[336421921,1724820651652,-1418.75,0.00010978,2]
[336421922,1724820651661,-1418.75,0.00010978,2]
[336421923,1724820651670,-1374.91,0.00010978,2]
[336421924,1724820651679,-1374.91,0.00010978,2]
[336421925,1724820651688,-1374.91,0.00010978,2]
[336421926,1724820651697,-4543.32,0.00010978,2]
[336421927,1724820651706,-500.0,0.00010978,2]
[336421928,1724820651716,-464.12352017,0.00010978,2]
[336421929,1724820651726,-500.0,0.00010978,2]
[336421930,1724820651736,-500.0,0.00010978,2]
[336421931,1724820651745,-500.0,0.00010978,2]
[336421932,1724820651755,-500.0,0.00010978,2]
[336421933,1724820651764,-500.0,0.00010978,2]
[336421934,1724820651774,-500.0,0.00010978,2]
[336421935,1724820651784,-500.0,0.00010978,2]
[336421936,1724820651793,-500.0,0.00010978,2]
[336421937,1724820651808,-2818.46,0.00010978,2]
[336421938,1724820651817,-2818.46,0.00010978,2]
[336421939,1724820651827,-2818.46,0.00010978,2]
[336421940,1724820651836,-2927.55,0.00010978,2]
[336421941,1724820651846,-2927.55,0.00010978,2]
[336421942,1724820651855,-2927.55,0.00010978,2]
[336421943,1724820651865,-18834.55,0.00010978,2]
[336421944,1724820651875,-658.48,0.00010978,2]
[336421945,1724820651884,-500.0,0.00010978,2]
[336421946,1724820651893,-457.64052048,0.00010978,2]
[336421947,1724820651903,-9191.46,0.00010978,2]
[336421948,1724820651912,-500.0,0.00010978,2]
[336421949,1724820651921,-500.0,0.00010978,2]
[336421950,1724820651930,-500.0,0.00010978,2]
[336421951,1724820651940,-500.0,0.00010978,2]
[336421952,1724820651950,-500.0,0.00010978,2]
[336421953,1724820651959,-500.0,0.00010978,2]
[336421954,1724820651968,-500.0,0.00010978,2]
[336421955,1724820651978,-588.52,0.00010978,2]
[336421956,1724820651987,-2186.13,0.00010978,2]
[336421957,1724820651996,-500.0,0.00010978,2]
[336421958,1724820652005,-2186.13,0.00010978,2]
[336421959,1724820652015,-500.0,0.00010978,2]
[336421960,1724820652024,-2186.13,0.00010978,2]
[336421961,1724820652033,-4362.83,0.00010978,2]
[336421962,1724820652042,-500.0,0.00010978,2]
[336421963,1724820652054,-500.0,0.00010978,2]
[336421964,1724820652063,-319.65041127,0.00010978,2]
[336421965,1724820652073,-500.0,0.00010978,2]
[336421966,1724820652082,-500.0,0.00010978,2]
[336421967,1724820652091,-506.75788518,0.00010978,2]
[336421968,1724820652101,-770.51,0.00010978,2]
[336421969,1724820652111,-770.51,0.00010978,2]
[336421970,1724820652121,-770.51,0.00010978,2]